Cogmind - Beta 13 X1 @@@ ROGUE MODE // 2023.11.11 @ 08:53:33 Player: VR-DUX Result: Destroyed by G-47 Trooper with Particle Gun Performance ------------- Evolutions (1) 500 Regions Visited (3) 600 Robots Destroyed (57) 285 Value Destroyed (1247) 1247 Prototype IDs (0) 0 Alien Tech Used (0) 0 Bonus (157) 157 TOTAL SCORE: 2789 Bonus ------- High Alert Combat Kills 62 Follower Combat Kills 95 Cogmind --------- Core Integrity 0/400 Matter 202/300 Energy 115/125 System Corruption 0% Temperature Cool (9) Movement Treading (160) Location -9/Materials Parts ------- > --- POWER (1) -------- Light Ion Engine > --- PROPULSION (3) --- Light Treads Light Treads Improved Treads > --- UTILITY (3) ------ Large Storage Unit Signal Interpreter Hacking Suite > --- WEAPON (2) ------- Light Assault Rifle Mini Grenade Launcher > --- INVENTORY (15) --- Light Treads Aluminum Leg Wheel Improved Heat Sink Large Matter Pod (150) Sensor Array Improved Terrain Scanner Propulsion Shielding Hacking Suite Light Assault Rifle Heavy Assault Rifle Mini Grenade Launcher Mini Grenade Launcher Mace Heavy Hammer Peak State ------------ > --- POWER ------------ Light Ion Engine > --- PROPULSION ------- Light Treads Light Treads Improved Treads > --- UTILITY ---------- Large Storage Unit Signal Interpreter Hacking Suite > --- WEAPON ----------- Light Assault Rifle Heavy Assault Rifle > --- INVENTORY -------- Light Treads Aluminum Leg Aluminum Leg Wheel Improved Heat Sink Large Matter Pod Sensor Array Improved Terrain Scanner Propulsion Shielding Hacking Suite Light Assault Rifle Mini Grenade Launcher Mini Grenade Launcher Mace Heavy Hammer [Rating: 15] Favorites ----------- Power Ion Engine Engine Ion Engine Propulsion Light Treads Treads Light Treads Leg Aluminum Leg Wheel Compact Wheel Utility Structural Scanner Device Structural Scanner Storage Large Storage Unit Processor Signal Interpreter Hackware Hacking Suite Weapon Light Assault Rifle Energy Gun EM Pulse Gun Ballistic Gun Light Assault Rifle Ballistic Cannon Light Cannon Launcher Grenade Launcher Special Weapon Mining Laser Impact Weapon Mace Build | -11 -10 -10 -9 ------- Run | Jun Mat Min Mat Slots Evolved 2 | . . . 2 Power . | . . . . Propulsion 1 | . . . 1 Utility 1 | . . . 1 Weapon . | . . . . Parts Attached 44 | 1 11 1 31 Power 2 | . 1 . 1 Engine 2 | . 1 . 1 Core . | . . . . Reactor . | . . . . Propulsion 15 | . 2 . 13 Treads 7 | . 2 . 5 Leg 5 | . . . 5 Wheel 3 | . . . 3 Hover . | . . . . Flight . | . . . . Utility 8 | 1 4 1 2 Device 3 | 1 1 . 1 Storage 3 | . 3 . . Processor 1 | . . 1 . Hackware 1 | . . . 1 Protection . | . . . . Artifact . | . . . . Weapon 19 | . 4 . 15 Energy Gun . | . . . . Energy Cannon . | . . . . Ballistic Gun 8 | . 2 . 6 Ballistic Cannon 2 | . . . 2 Launcher 6 | . 2 . 4 Special Weapon 1 | . . . 1 Impact Weapon 2 | . . . 2 Slashing Weapon . | . . . . Piercing Weapon . | . . . . Special Melee Weapon . | . . . . Unidentified Prototypes . | . . . . Parts Lost 14 | . 1 . 13 Power 2 | . 1 . 1 Propulsion 7 | . . . 7 Utility 1 | . . . 1 Weapon 4 | . . . 4 Highest Loss Streak 8 | . 1 . 8 To Critical Strikes . | . . . . Average Slot Usage (%) 97 | . 99 100 89 Engine 13 | . 14 14 10 Treads 19 | . 18 28 10 Leg 5 | . 9 . 6 Wheel 2 | . . . 9 Device 11 | . 14 13 4 Storage 13 | . 14 14 11 Processor 3 | . . . 11 Energy Gun 1 | . 3 . . Ballistic Gun 22 | . 23 28 14 Ballistic Cannon 1 | . . . 4 Naked Turns . | . . . . Heaviest Build 32 | 12 30 28 32 Greatest Support 63 | 20 40 40 63 Greatest Overweight (x) 8 | . . . 8 Average Overweight (x) . | . . . . Largest Inventory Capacity 15 | 8 15 15 15 Average Capacity 13 | 8 10 15 15 Most Carried 15 | 6 12 15 15 Average Carried 11 | 6 8 14 13 Final Capacity 15 | 8 15 15 15 Final Carried 15 | 6 12 15 15 Class Distribution -------------------- 90% | Mutant 9% | Scavenger-Mutant Dominant Class ---------------- Mutant | -10/Materials Mutant | -10/Mines Mutant | -9/Materials Resources | -11 -10 -10 -9 ----------- Run | Jun Mat Min Mat Matter Collected 1038 | 215 270 18 535 Remotely . | . . . . Salvage Created 1676 | 94 503 16 1063 Parts 106 | 4 31 2 69 Haulers Intercepted 3 | . 2 . 1 Recyclers Shooed . | . . . . Parts Field Recycled . | . . . . Retrieved Matter . | . . . . Parts Self-Destructed . | . . . . Prevented . | . . . . Kills | -11 -10 -10 -9 ------- Run | Jun Mat Min Mat Combat Hostiles Destroyed 36 | . 10 1 25 Guns 15 | . 8 1 6 Cannons 6 | . . . 6 AOE 15 | . 2 . 13 Classes Destroyed 12 | 2 5 . 5 Worker 2 | . . . 2 Builder 4 | . . . 4 Tunneler 1 | 1 . . . Hauler 3 | . 2 . 1 Recycler 6 | 1 2 . 3 Operator 2 | . 1 . 1 Watcher 3 | . 2 . 1 Swarmer 11 | . 6 1 4 Grunt 18 | . 4 . 14 Brawler 1 | . . . 1 Duelist 1 | . . . 1 Sentry 5 | . . . 5 Best Kill Streak 18 | 2 3 1 18 Combat Bots Only 12 | . 3 1 12 Max Kills in Single Turn 3 | 1 1 1 3 Gunslinging . | . . . . Exploded 2 | . 1 . 2 Melee . | . . . . Uniques/NPCs Destroyed . | . . . . Combat | -11 -10 -10 -9 -------- Run | Jun Mat Min Mat Damage Taken 1936 | . 307 47 1582 Core 455 | . 46 . 409 Absorbed by Shields . | . . . . Core Remaining (%) 90 | 100 . 81 . Volleys Fired 155 | 5 69 4 77 Largest 2 | 2 2 2 2 Hottest 100 | 60 60 40 100 Shots Fired 278 | 10 132 8 128 Gun 230 | 10 126 8 86 Cannon 24 | . . . 24 Launcher 23 | . 6 . 17 Special 1 | . . . 1 Kinetic 228 | 5 105 8 110 Thermal 1 | . . . 1 Explosive 23 | . 6 . 17 Electromagnetic 26 | 5 21 . . Robot Hit Streak 26 | 2 10 1 26 Robot Miss Streak 8 | 2 8 5 3 Penetration Max . | . . . . Secondary Targets 1 | . . . 1 Max Gunslinging Chain 1 | . . . 1 Shots Hit Robots 174 | 5 69 2 98 Core Hits 100 | 3 36 2 59 Critical Kills 1 | . . . 1 Critical Parts Destroyed 2 | . 2 . . Critical Strikes 3 | . 2 . 1 Destroy 3 | . 2 . 1 Melee Attacks 7 | . . . 7 Impact 7 | . . . 7 Slashing . | . . . . Piercing . | . . . . Sneak Attacks 2 | . . . 2 Combat Hostiles . | . . . . Follow-up Attacks . | . . . . Damage Inflicted 3711 | 55 935 12 2709 Guns 1334 | 55 612 12 655 Cannons 325 | . . . 325 Explosions 1925 | . 323 . 1602 Melee 127 | . . . 127 Ramming . | . . . . Kinetic 1475 | 15 468 12 980 Thermal 75 | . 75 . . Explosive 1825 | . 223 . 1602 Electromagnetic 209 | 40 169 . . Impact 127 | . . . 127 Slashing . | . . . . Piercing . | . . . . Highest Corruption . | . . . . Average Corruption . | . . . . Corruption Purged . | . . . . Corruption Blocked . | . . . . Overload Shots . | . . . . Overflow Damage 50 | . . . 50 Projectiles . | . . . . Explosions 33 | . . . 33 Melee 17 | . . . 17 Knockbacks 4 | . . . 4 Impact . | . . . . Kinetic 4 | . . . 4 Secondary . | . . . . Self-Inflicted Damage 92 | . 20 . 72 Shots 5 | . 2 . 3 Rammed . | . . . . Targets Rammed . | . . . . Kicked . | . . . . Crushed . | . . . . Highest Temperature 52 | 40 52 . 35 Average Temperature 14 | 22 17 . 10 Received Heat Transfer 693 | . 48 . 645 Siege Activations . | . . . . Robots Corrupted . | . . . . Combat Hostiles . | . . . . Parts Fried . | . . . . Impact Corruptions 1 | . . . 1 Robots Melted . | . . . . Combat Hostiles . | . . . . Parts Melted . | . . . . Heat Transferred 100 | . 100 . . Parts Sabotaged . | . . . . Parts Stolen . | . . . . Parts Stripped . | . . . . Power Chain Reactions 2 | . 2 . . Missiles Intercepted . | . . . . Alert | -11 -10 -10 -9 ------- Run | Jun Mat Min Mat Peak Influence 584 | 10 210 160 584 Initial 17 | . 6 17 3 Average 97 | 5 56 36 255 Maximum Alert Level 2 | . 1 . 2 Low Security (%) 86 | 100 98 100 47 Level 1 6 | . 1 . 25 Level 2 6 | . . . 27 Level 3 . | . . . . Level 4 . | . . . . Level 5 . | . . . . High Security . | . . . . Max Security . | . . . . Squads Dispatched 5 | . 2 . 3 Investigation 1 | . 1 . . Extermination . | . . . . Reinforcement 4 | . 1 . 3 Assault . | . . . . Garrison . | . . . . Intercept . | . . . . Searches Triggered . | . . . . Construction Impeded 1 | . . . 1 Haulers Reinforced . | . . . . Active Scanning Responses . | . . . . Cargo Convoy Interrupts . | . . . . Stealth | -11 -10 -10 -9 --------- Run | Jun Mat Min Mat Distress Signals 3 | . . . 3 Communications Jammed . | . . . . Distress Signals . | . . . . Times Spotted 62 | . 18 8 36 Peak Tracking Total 15 | . 3 3 15 Tactical Retreats 3 | . 2 1 . Traps | -11 -10 -10 -9 ------- Run | Jun Mat Min Mat Traps Triggered 1 | . 1 . . Indirectly . | . . . . Trap Hack Attempts . | . . . . Triggered . | . . . . Disarmed 1 | . 1 . . Reprogrammed . | . . . . Reused . | . . . . Traps Extracted . | . . . . Installed . | . . . . Triggered . | . . . . Machines | -11 -10 -10 -9 ---------- Run | Jun Mat Min Mat Machines Disabled 4 | . 2 . 2 Max in Single Turn 1 | . 1 . 1 Machines Repaired . | . . . . Machines Sabotaged . | . . . . Overloaded Fab Kills . | . . . . Hacking | -11 -10 -10 -9 --------- Run | Jun Mat Min Mat Machines Accessed 15 | . 10 . 5 Terminals 11 | . 8 . 3 Fabricators . | . . . . Repair Stations . | . . . . Recycling Units 4 | . 2 . 2 Scanalyzers . | . . . . Garrison Access . | . . . . Total Hacks 39 | . 28 . 11 Successful 14 | . 11 . 3 Failed 24 | . 17 . 7 Catastrophic 5 | . 4 . 1 Database Lockouts 1 | . . . 1 Manual 23 | . 15 . 8 Terminals 34 | . 25 . 9 Fabricators . | . . . . Repair Stations . | . . . . Recycling Units 5 | . 3 . 2 Scanalyzers . | . . . . Garrison Access . | . . . . Terminal Hacks 12 | . 10 . 2 Robot Analysis 5 | . 4 . 1 Branch Access Points 1 | . . . 1 Unreport Threat 2 | . 2 . . Locate Traps 1 | . 1 . . Disarm Traps 1 | . 1 . . Zone Layout 2 | . 2 . . Fabricator Hacks . | . . . . Repair Station Hacks . | . . . . Recycling Unit Hacks 2 | . 1 . 1 Retrieve Components 2 | . 1 . 1 Scanalyzer . | . . . . Garrison Access Hacks . | . . . . Unauthorized Hacks . | . . . . Terminals . | . . . . Fabricators . | . . . . Repair Stations . | . . . . Recycling Units . | . . . . Scanalyzers . | . . . . Garrison Access . | . . . . Data Cores Recovered . | . . . . Used . | . . . . Hacking Detections 13 | . 10 . 3 Full Trace Events 1 | . 1 . . Feedback Events . | . . . . Feedback Blocked . | . . . . Robot Schematics Acquired . | . . . . Robots Built . | . . . . Authchips . | . . . . Time . | . . . . Total Robot Build Rating . | . . . . Part Schematics Acquired . | . . . . Parts Built . | . . . . Authchips . | . . . . Time . | . . . . Total Part Build Rating . | . . . . Parts Repaired . | . . . . Time . | . . . . Parts Recycled . | . . . . Recycled Matter . | . . . . Retrieved Matter . | . . . . Retrieved Components 3 | . . . 3 Parts Scanalyzed . | . . . . Part Schematics Acquired . | . . . . Parts Damaged . | . . . . Bothacking | -11 -10 -10 -9 ------------ Run | Jun Mat Min Mat Used RIF Installer . | . . . . Robots Hacked . | . . . . Non-combat . | . . . . Combat . | . . . . Robot Hacks Applied . | . . . . Relay Couplers Released . | . . . . Fabnet Peak Effective % . | . . . . Robots Rewired . | . . . . Allies Hacked . | . . . . Hacks Repelled . | . . . . Allies | -11 -10 -10 -9 -------- Run | Jun Mat Min Mat Total Allies 3 | . . 3 . Largest Group 3 | . . 3 . Highest-Rated Group 40 | . . 40 . Highest-Rated Ally 16 | . . 16 . Total Orders . | . . . . Ally Attacks 30 | . . 30 . Total Damage 252 | . . 252 . Kills 7 | . . 7 . Allies Corrupted . | . . . . Allies Melted . | . . . . Intel | -11 -10 -10 -9 ------- Run | Jun Mat Min Mat Robot Analysis Total 5 | . 4 . 1 Derelict Logs Recovered 2 | . . 2 . Drone Launches . | . . . . Drone Recoveries . | . . . . Exploration | -11 -10 -10 -9 ------------- Run | Jun Mat Min Mat Turns Passed 3141 | 33 1190 1144 774 Spaces Moved 1753 | 15 667 678 393 Core 5 | . . . 5 Treads 1152 | . 418 678 56 Legs 341 | 15 249 . 77 Wheels 255 | . . . 255 Hover . | . . . . Flight . | . . . . Fastest Speed 100 | 120 120 160 100 Average Speed 145 | 120 145 160 122 Slowest Speed 450 | 120 160 160 450 Overloaded Moves . | . . . . Propulsion Burnouts . | . . . . Robots Hopped . | . . . . Cave-ins Triggered . | . . . . Exploration Rate (%) 58 | 2 95 101 35 Regions Visited 3 Branch Regions 1 Pre-discovered Areas 1 | . . 1 . Known Exits Taken 1 | . . 1 . Unknown Exits Taken 2 | 1 1 . . Scrap Searched 1 | . . 1 . Spaces Dug 5 | . . . 5 Terrain Destroyed 89 | . 18 . 71 Melee 4 | . . . 4 Projectile 1 | . . . 1 AOE 84 | . 18 . 66 Terrain Rammed . | . . . . Walls Destroyed . | . . . . Machines Disabled . | . . . . Actions | -11 -10 -10 -9 --------- Run | Jun Mat Min Mat Total 2083 | 20 780 731 552 Wait 83 | . 13 44 26 Move 1750 | 14 666 677 393 Hop . | . . . . Pick Up 26 | . 12 4 10 Fast Attach 12 | 1 1 . 10 Attach 12 | . 3 . 9 Detach 2 | . . . 2 Swap 20 | . 7 1 12 Drop 16 | . 9 1 6 Fire 155 | 5 69 4 77 Melee 7 | . . . 7 Ram . | . . . . Kick . | . . . . Crush . | . . . . Escape Stasis . | . . . . Rewire . | . . . . Trap . | . . . . Miscellaneous . | . . . . Route ------- -11/Junkyard -10/Materials (discovered 5 exits: *Mat x3 / *Min / Sub) -10/Mines (discovered 3 exits: *Mat x2 / *Sub) -9/Materials (discovered 1 exit: Min) History --------- Turn | Location | Event 1 | -11/Junkyard | Discovered new exit (range 2) 34 | -11/Junkyard | Entered Materials 153 | -10/Materials | Discovered new exit (range 14) 237 | -10/Materials | Discovered new exit (range 10) 266 | -10/Materials | Discovered new exit (range 18) 313 | -10/Materials | Build established: Mutant 500 | -10/Materials | Derelicts attacked the area 718 | -10/Materials | Discovered new exit (range 14) 1005 | -10/Materials | Discovered new exit (range 8) 1224 | -10/Materials | Entered Mines 1265 | -10/Mines | Discovered new exit (range 8) 1320 | -10/Mines | Learned location of Storage (-8) 1612 | -10/Mines | Discovered new exit (range 9) 1673 | -10/Mines | Assisted by bots powering up and referring to "LRC-V3" 1718 | -10/Mines | Discovered new exit (range 11) 1777 | -10/Mines | Learned Materials terminal intel 1795 | -10/Mines | Received a Rocket Launcher from a helpful Derelict 2296 | -10/Mines | Identified exit to Subcaves 2366 | -10/Mines | Identified exit to Materials 2368 | -10/Mines | Entered Materials 2368 | -9/Materials | Evolved 2 slots: Propulsion x1, Utility x1 2369 | -9/Materials | Identified exit to Mines 2370 | -9/Materials | Loaded intel: 12 terminal locations 2513 | -9/Materials | Central database locked down 2799 | -9/Materials | Core integrity fell below 50% 2829 | -9/Materials | Lost 8 parts (1p3n1u3w) 2839 | -9/Materials | Destroyed 12 combat bots 2983 | -9/Materials | Lost 3 parts (2n1w) 3056 | -9/Materials | Core integrity fell below 20% 3142 | -9/Materials | Destroyed by G-47 Trooper with Particle Gun Last Messages --------------- 03089_ G-34 Mercenary destroyed. 03092_ K-01 Serf collects debris. 03097_ Dropped Aluminum Leg. 03097_ Acquired Lgt. Treads. 03097_ K-01 Serf collects debris. 03101_ Dropped Aluminum Leg. 03101_ Acquired Lgt. Treads. 03102_ K-01 Serf collects debris. 03104_ Dropped Aluminum Leg. 03107_ Acquired Mni. Grenade Launcher. 03108_ Acquired 35 matter. 03111_ Acquired 51 matter. 03124_ W-16 Scout sends out distress signal. 03130_ R-06 Scavenger collects Aluminum Leg. 03136_ K-01 Serf cleans the Terminal. 03141_ Destroyed Wheel. 03141_ U-05 Engineer destroyed. 03141_ G-34 Mercenary destroyed. 03141_ Destroyed Hover Unit. 03142_ U-05 Engineer builds a Wall. Map ----- +----------------------------------------------------+ | """ ## ############## ??????? # # # | | """ %! %!%[##############???????####### ## | | !* * ??????? | | %[! * ????????????? | | #### #!#### ???????????? | | #### ## # ###+#### #####????????????### | | ? #########/#### ### #####????????????### | | """ #### !! # ? #?? ????????????????????!!!! | | ""????## # ? #?? ???????????????????#!!!! | | ""????## # ????? ???????????????????##### | | ???????## # ????? ???????????????????##### | | ???????## [ " " # ????? ???????????????????????? | | ???????## ! "Y" # ????? ???????????????????????? | | ???????## [ """ ##????# #??????????????????????? | | ???????## ##????# #??????????????????????? | | ???????####+#### ###????# #??????????????""??????? | | ???????#### ############# #??????????????T"??????? | | ?????????## #?# [ =# #??????????????""??????? | | ?????????## #?# =[!# #??????????????????????? | | ?????????## #?# ==# #??????????????????????? | | ?????????## #?# ! ! /k#??????????????????????? | | ???????####+#############r#??????????????????????? | | ???????# ## ##?## ##?????????????????????? | | ???????# #!= ### #?????????????????????? | | ???????# """ """ #[ /u #?????????????????????? | | ???????#!""" """ # ### @ #?????????????????????? | | ???????# """ """ # " ## ! #????????????????????? | | ???????# [ # T ## !** #???????????????????? | | ???????# != # " ## *kg* #???????????????????? | | ???????# ! # ## ***%##???????????????????? | | ?????#######+######+### != w#????????????????????? | | ?????# ???????????????? | | ?????+ T ???????????????? | | ?????# * ####?????????????????? | | ?????# ###+########## #????????????????????? | | ?????# ?? ????????#######????????????????????? | | ?????# ??? ???????????????????????????????????? | | ?????# ???""" ??????????????????????????????????? | | ?????#????""" ??????????????????????????????????? | | ?????????#"S "?????????????????????????????????? | | ?????????#""" ?????????????????????????????????T | | ???????????"" ????????????????????????????????? | | ????????????? ????????????????????????????????? | | ?????????????# ###???????????????????????????????? | | ??????????????##?????????????????????????????????? | | ?????????????????????????????????????????????????? | | ?????????????????????????????????????????????????? | | ???????????????????????????????""????????????????? | | ???????????????????????????????T"????????????????? | | ???????????????????????????????""????????????????? | +----------------------------------------------------+ Best States ------------- Heat Dissipation 28 Energy Generation 10 Energy Capacity 250 Matter Stores 300 Matter Capacity 300 Sight Range 16 Terrain Scan Range 16 Terrain Scan Density 10 Evasion (%) 55 Recoil Reduction 3 Offensive Hacking 10 Item Schematics ----------------- None Robot Schematics ------------------ None Fabricated ------------ Nothing Alien Tech Used ----------------- None Achievements -------------- None Challenges ------------ None Game ------ Seed RainbowSubatomicBoosters Manual? 0 Play Time 00:41:06 Cumulative 178.3 hours Start 2023.11.11 @ 08:05:42 End 2023.11.11 @ 08:53:33 Sessions 1 Manual Loads 0 Difficulty Rogue Special Mode None Game No. 111 Rogue 111 Adventurer 0 Explorer 0 Win Type - Total 4 Types 3/0/1/0/0/0/0/0/0 Lore% 53 Gallery% 54 Achievement% 50 Wizard Run 0 Options --------- ASCII 0 Keyboard 0 Movement Mouse Keybinds 0 Fullscreen 1 Font 18/SmallcapsGlow Map View 76x50 Tactical HUD 1 Map Filters NONE Filters NONE Steam 1 RUN: cd5119b2-52f4-4549-8f10-5fd05cec4e7a